Cogmind - Beta 13 *** ADVENTURER MODE // 2024.04.09 @ 00:01:26 Player: Nahyn Result: Destroyed by G-34 Mercenary with Small Laser Performance ------------- Evolutions (0) 0 Regions Visited (1) 200 Robots Destroyed (12) 60 Value Destroyed (330) 330 Prototype IDs (0) 0 Alien Tech Used (0) 0 Bonus (0) 0 TOTAL SCORE: 590 Bonus ------- None Cogmind --------- Core Integrity 0/250 Matter 258/300 Energy 100/100 System Corruption 0% Temperature Cool (6) Movement Core (700) Ox13 Location -10/Materials Parts ------- > --- POWER (1) -------- (None) > --- PROPULSION (2) --- (None) > --- UTILITY (2) ------ High-capacity Storage Unit Improved Terrain Scanner > --- WEAPON (2) ------- (None) > --- INVENTORY (20) --- Medium Matter Pod (85) Peak State ------------ > --- POWER ------------ Light Ion Engine > --- PROPULSION ------- Aluminum Leg Aluminum Leg > --- UTILITY ---------- Medium Storage Unit Large Storage Unit > --- WEAPON ----------- Light Assault Rifle Mining Laser > --- INVENTORY -------- Ion Engine [Rating: 7] Favorites ----------- Power Light Ion Engine Engine Light Ion Engine Propulsion Aluminum Leg Leg Aluminum Leg Utility High-capacity Storage Unit Device Improved Terrain Scanner Storage High-capacity Storage Unit Weapon Light Assault Rifle Ballistic Gun Light Assault Rifle Launcher Grenade Launcher Special Weapon Mining Laser Build | -11 -10 ------- Run | Yrd Mat Slots Evolved . | . . Power . | . . Propulsion . | . . Utility . | . . Weapon . | . . Parts Attached 13 | 7 6 Power 4 | 3 1 Engine 4 | 3 1 Core . | . . Reactor . | . . Propulsion 2 | 2 . Treads . | . . Leg 2 | 2 . Wheel . | . . Hover . | . . Flight . | . . Utility 4 | . 4 Device 1 | . 1 Storage 3 | . 3 Processor . | . . Hackware . | . . Protection . | . . Artifact . | . . Weapon 3 | 2 1 Energy Gun . | . . Energy Cannon . | . . Ballistic Gun 1 | 1 . Ballistic Cannon . | . . Launcher 1 | . 1 Special Weapon 1 | 1 . Impact Weapon . | . . Slashing Weapon . | . . Piercing Weapon . | . . Special Melee Weapon . | . . Unidentified Prototypes . | . . Parts Lost 7 | . 7 Power 2 | . 2 Propulsion 2 | . 2 Utility . | . . Weapon 3 | . 3 Highest Loss Streak 6 | . 6 To Critical Strikes . | . . Average Slot Usage (%) 78 | . 78 Engine 12 | . 12 Leg 25 | . 25 Device 1 | . 1 Storage 13 | . 13 Ballistic Gun 12 | . 12 Special Weapon 11 | . 11 Naked Turns . | . . Heaviest Build 47 | 5 47 Greatest Support 20 | 20 20 Greatest Overweight (x) 14 | . 14 Average Overweight (x) 1 | . 1 Largest Inventory Capacity 20 | 5 20 Average Capacity 15 | 5 17 Most Carried 3 | 2 3 Average Carried 1 | . 1 Final Capacity 20 | 5 20 Final Carried 1 | 1 1 Class Distribution -------------------- 100% | Mutant Dominant Class ---------------- Mutant | -10/Materials Resources | -11 -10 ----------- Run | Yrd Mat Matter Collected 353 | 281 72 Remotely . | . . Salvage Created 309 | 54 255 Parts 23 | 5 18 Haulers Intercepted . | . . Recyclers Shooed 1 | . 1 Parts Field Recycled . | . . Retrieved Matter . | . . Parts Self-Destructed . | . . Prevented . | . . Kills | -11 -10 ------- Run | Yrd Mat Combat Hostiles Destroyed 6 | 1 5 Guns 3 | 1 2 Cannons 1 | . 1 AOE 2 | . 2 Classes Destroyed 6 | 2 4 Worker 1 | . 1 Builder 2 | . 2 Tunneler 1 | 1 . Recycler 1 | . 1 Watcher 1 | . 1 Grunt 6 | 1 5 Best Kill Streak 7 | 1 7 Combat Bots Only 3 | 1 3 Max Kills in Single Turn 2 | 1 2 Gunslinging . | . . Exploded 1 | . 1 Melee . | . . Uniques/NPCs Destroyed . | . . Combat | -11 -10 -------- Run | Yrd Mat Hostile Shots Fired 91 | 8 83 Missed 25 | 4 21 Damage Taken 720 | 34 686 Core 255 | . 255 Absorbed by Shields . | . . Ignored by Resistances 222 | 10 212 Core Remaining (%) 100 | 100 . Volleys Fired 34 | 11 23 Largest 2 | 1 2 Hottest 100 | 20 100 Shots Fired 38 | 11 27 Gun 26 | 11 15 Cannon . | . . Launcher 7 | . 7 Special 5 | . 5 Kinetic 26 | 11 15 Thermal 5 | . 5 Explosive 7 | . 7 Electromagnetic . | . . Robot Hit Streak 17 | 5 17 Robot Miss Streak 1 | 1 1 Penetration Max . | . . Secondary Targets . | . . Shots Hit Robots 27 | 10 17 Core Hits 31 | 3 28 Critical Kills . | . . Critical Parts Destroyed . | . . Critical Strikes . | . . Melee Attacks . | . . Impact . | . . Slashing . | . . Piercing . | . . Sneak Attacks . | . . Combat Hostiles . | . . Follow-up Attacks . | . . Damage Inflicted 971 | 50 921 Guns 154 | 50 104 Cannons . | . . Explosions 793 | . 793 Melee . | . . Ramming . | . . Kinetic 154 | 50 104 Thermal 172 | . 172 Explosive 596 | . 596 Electromagnetic 49 | . 49 Impact . | . . Slashing . | . . Piercing . | . . Highest Corruption . | . . Average Corruption . | . . Corruption Purged . | . . Corruption Blocked . | . . Overload Shots . | . . Overflow Damage 74 | . 74 Projectiles . | . . Explosions 74 | . 74 Melee . | . . Knockbacks . | . . Impact . | . . Kinetic . | . . Secondary . | . . Self-Inflicted Damage 144 | . 144 Shots 7 | . 7 Rammed . | . . Targets Rammed . | . . Kicked . | . . Crushed . | . . Highest Temperature 60 | 1 60 Average Temperature 16 | 1 17 Received Heat Transfer 423 | 24 399 Siege Activations . | . . Robots Corrupted . | . . Combat Hostiles . | . . Parts Fried . | . . Impact Corruptions . | . . Robots Melted . | . . Combat Hostiles . | . . Parts Melted . | . . Heat Transferred 200 | . 200 Parts Sabotaged . | . . Parts Stolen . | . . Parts Stripped . | . . Power Chain Reactions . | . . Alert | -11 -10 ------- Run | Yrd Mat Peak Influence 237 | 25 237 Initial 13 | . 13 Average 36 | 10 43 Maximum Alert Level 1 | . 1 Low Security (%) 96 | 100 95 Level 1 3 | . 4 Level 2 . | . . Level 3 . | . . Level 4 . | . . Level 5 . | . . High Security . | . . Max Security . | . . Squads Dispatched . | . . Investigation . | . . Extermination . | . . Reinforcement . | . . Assault . | . . Garrison . | . . Intercept . | . . Searches Triggered . | . . Construction Impeded . | . . Haulers Reinforced . | . . Active Scanning Responses . | . . Cargo Convoy Interrupts . | . . Stealth | -11 -10 --------- Run | Yrd Mat Distress Signals . | . . Communications Jammed . | . . Distress Signals . | . . Times Spotted 10 | 1 9 Peak Tracking Total 3 | 1 3 Tactical Retreats . | . . Traps | -11 -10 ------- Run | Yrd Mat Traps Triggered . | . . Indirectly . | . . Trap Hack Attempts . | . . Triggered . | . . Disarmed . | . . Reprogrammed . | . . Reused . | . . Traps Extracted . | . . Installed . | . . Triggered . | . . Machines | -11 -10 ---------- Run | Yrd Mat Machines Disabled 6 | . 6 Max in Single Turn 3 | . 3 Machines Repaired . | . . Machines Dismantled . | . . Machines Sabotaged . | . . Overloaded Fab Kills . | . . Hacking | -11 -10 --------- Run | Yrd Mat Machines Accessed 2 | . 2 Terminals 2 | . 2 Fabricators . | . . Repair Stations . | . . Recycling Units . | . . Scanalyzers . | . . Garrison Access . | . . Total Hacks 3 | . 3 Successful 3 | . 3 Failed . | . . Catastrophic . | . . Database Lockouts . | . . Manual . | . . Terminals 3 | . 3 Fabricators . | . . Repair Stations . | . . Recycling Units . | . . Scanalyzers . | . . Garrison Access . | . . Terminal Hacks 3 | . 3 Alert Level 1 | . 1 Maintenance Status 2 | . 2 Fabricator Hacks . | . . Repair Station Hacks . | . . Recycling Unit Hacks . | . . Scanalyzer . | . . Garrison Access Hacks . | . . Unauthorized Hacks . | . . Terminals . | . . Fabricators . | . . Repair Stations . | . . Recycling Units . | . . Scanalyzers . | . . Garrison Access . | . . Data Cores Recovered . | . . Used . | . . Hacking Detections . | . . Full Trace Events . | . . Feedback Events . | . . Feedback Blocked . | . . Robot Schematics Acquired . | . . Robots Built . | . . Authchips . | . . Time . | . . Total Robot Build Rating . | . . Part Schematics Acquired . | . . Parts Built . | . . Authchips . | . . Time . | . . Total Part Build Rating . | . . Parts Repaired . | . . Time . | . . Parts Recycled . | . . Recycled Matter . | . . Retrieved Matter . | . . Retrieved Components . | . . Parts Scanalyzed . | . . Part Schematics Acquired . | . . Parts Damaged . | . . Bothacking | -11 -10 ------------ Run | Yrd Mat Used RIF Installer . | . . Robots Hacked . | . . Non-combat . | . . Combat . | . . Robot Hacks Applied . | . . Relay Couplers Released . | . . Fabnet Peak Effective % . | . . Robots Rewired . | . . Allies Hacked . | . . Hacks Repelled . | . . Allies | -11 -10 -------- Run | Yrd Mat Total Allies . | . . Largest Group . | . . Highest-Rated Group . | . . Highest-Rated Ally . | . . Total Orders . | . . Ally Attacks . | . . Total Damage . | . . Kills . | . . Allies Corrupted . | . . Allies Melted . | . . Intel | -11 -10 ------- Run | Yrd Mat Robot Analysis Total . | . . Derelict Logs Recovered . | . . Drone Launches . | . . Drone Recoveries . | . . Exploration | -11 -10 ------------- Run | Yrd Mat Turns Passed 789 | 159 630 Spaces Moved 357 | 114 243 Core 23 | 16 7 Treads . | . . Legs 334 | 98 236 Wheels . | . . Hover . | . . Flight . | . . Fastest Speed 50 | 50 120 Average Speed 191 | 110 229 Slowest Speed 750 | 120 750 Overloaded Moves . | . . Propulsion Burnouts . | . . Robots Hopped . | . . Cave-ins Triggered . | . . Exploration Rate (%) 19 | 8 31 Regions Visited 1 Branch Regions . Pre-discovered Areas . | . . Known Exits Taken . | . . Unknown Exits Taken 1 | 1 . Scrap Searched . | . . Spaces Dug 4 | . 4 Terrain Destroyed 52 | . 52 Melee . | . . Projectile 4 | . 4 AOE 48 | . 48 Terrain Rammed . | . . Walls Destroyed . | . . Machines Disabled . | . . Actions | -11 -10 --------- Run | Yrd Mat Total 419 | 137 282 Wait . | . . Move 356 | 113 243 Hop . | . . Pick Up 13 | 6 7 Fast Attach . | . . Attach 10 | 5 5 Detach . | . . Swap 3 | 2 1 Drop 3 | . 3 Fire 34 | 11 23 Melee . | . . Ram . | . . Kick . | . . Crush . | . . Escape Stasis . | . . Rewire . | . . Trap . | . . Miscellaneous . | . . Route ------- -11/Scrapyard -10/Materials (discovered 1 exit: [*Mat]) History --------- Turn | Location | Event 2 | -11/Scrapyard | Met Revision 17 58 | -11/Scrapyard | Discovered new exit (range 8) 160 | -11/Scrapyard | Entered Materials 310 | -10/Materials | Build established: Mutant 737 | -10/Materials | Discovered new exit (range 14) 745 | -10/Materials | Core integrity fell below 50% 780 | -10/Materials | Core integrity fell below 20% 782 | -10/Materials | Lost 6 parts (2p2n2w) 790 | -10/Materials | Destroyed by G-34 Mercenary with Small Laser Last Messages --------------- Grenade Launcher destroyed. EXIT=FOUND Aluminum Leg destroyed. K-01 Serf collects debris. R-06 Scavenger collects Lgt. Ion Engine. K-01 Serf collects debris. R-06 Scavenger collects Terrain Scan Processor. K-01 Serf collects debris. R-06 Scavenger collects Wheel. K-01 Serf collects debris. The unstable cave ceiling collapses. Lgt. Ion Engine destroyed. K-01 Serf collects debris. The unstable cave ceiling collapses. M-13 Machinist repairs G-34 Mercenary. K-01 Serf collects debris. M-13 Machinist repairs G-34 Mercenary. M-13 Machinist repairs Sml. Laser. The unstable cave ceiling collapses. [Achievement: First Step to Greatness] Map ----- +----------------------------------------------------+ | | | | | | | | | | | | | ?????????????????????????????????????????????????? | | ?????????????????????????????????????????????????? | | ?????????????????????????????????????????????????? | | ?????????????????????????????????????????????????? | | ?????????????????????????????????????????????????? | | ?????????????????????????????????????????????????? | | ?????????????????????????????????????????????????? | | ?????????????????? ?????#????????????????????????? | | ??????????????????????????????#??????????????????? | | ???????????????? ????????#???????????????????????? | | ???????????????? ?????####?????????#?????????????? | | ????????????##?? ? ???# #??????????????????????? | | ??????????? + ?????# < #??????????????????????? | | ??????????" # ?????# #????? ????????????????? | | ?????????? ###### #??????????????????????? | | ?????????"" #???? ?????????????????? | | ???????? %= #??????????????????????? | | ????????""" #??????????? ??????????? | | ????????"" # """## #??????????????????????? | | ????????"" #@#??????????????????????? | | ???????? #g######+## #??????????? | | ?????????### # #??????????? | | ??????#### # + +?????????? | | ??????# ! # #??????????? | | ??????? "" # ###########+#??????????? | | ??????+ "T ! # #??????????????????????? | | ??????# " # "##/#####??????????????????? | | ??????# ## # #??????????????????? | | ??# #### # =# #??????????????????? | | ??# % % #??????????????????? | | ??# !* = #??????????????????? | | ??# % * * #??????????????????? | | ??# ##+####### # #??????????????????? | | ???????????????###% ## #??????????????????? | | ?????????????????# ### #??????????????????? | | ?????????????????#%#?# # ?????????????????? | | ?????????????????# #?#/########??????????????????? | | ?????????????????# #?# #?????????????????????????? | | ?????????????????# #?# #?????????????????????????? | | ?????????????????# #?# #?????????????????????????? | | ?????????????????# #?# #?????????????????????????? | | ?????????????????# ### ##????????????????????????? | | ?????????????????# #????????????????????????? | | ?????????????????# #????????????????????????? | +----------------------------------------------------+ Best States ------------- Heat Dissipation 25 Energy Generation 10 Energy Capacity 250 Matter Stores 300 Matter Capacity 300 Sight Range 16 Terrain Scan Range 16 Terrain Scan Density 10 Resistance: KI 20 Resistance: TH 20 Resistance: EX 20 Resistance: EM 20 Resistance: I 20 Resistance: S 20 Resistance: P 20 Evasion (%) 55 Offensive Hacking 10 Item Schematics ----------------- None Robot Schematics ------------------ None Fabricated ------------ Nothing Alien Tech Used ----------------- None Achievements -------------- Crack Shot First Step to Greatness Let's See Who's Tougher Challenges ------------ None Game ------ Seed DisruptionTacticalDoomcannon Manual? 0 Play Time 00:22:24 Cumulative 0.3 hours Start 2024.04.08 @ 22:19:27 End 2024.04.09 @ 00:01:26 Sessions 1 Manual Loads 0 Difficulty Adventurer Special Mode None Game No. 1 Rogue 0 Adventurer 1 Explorer 0 Win Type - Total 0 Types 0/0/0/0/0/0/0/0/0 Lore% 0 Gallery% 1 Achievement% 1 Wizard Run 0 Options --------- Layout 1 ASCII 0 Keyboard 0 Movement Mouse Keybinds 0 Fullscreen 1 Font 24/Smallcaps Map View 50x35 Zoom Use 0% Tactical HUD 0 Map Filters NONE Filters NONE Steam 1 RUN: 07c97f17-ff6d-4a51-95ee-069983111d2e